bitfinex/quotes_ETHUSD_20240604
["timestamp","ask_amount","ask_price","bid_price","bid_amount"]
[1717510690745,2.6362,3793.4,3792.2,2.63695]
[1717510690913,2.6362,3793.4,3792.3,1.32126577]
[1717510691219,7.33,3793.5,3792.1,3.513228]
[1717510691220,7.33,3793.5,3792.5,2.781]
[1717510691514,7.33,3793.5,3792.6,1.32126577]
[1717510691815,2.63622,3793.4,3792.6,1.32126577]
[1717510692022,2.63622,3793.4,3792.6,1.71707635]
[1717510692816,2.63644,3793.0,3792.1,0.513228]
[1717510693028,2.63644,3793.0,3792.2,1.32126577]
[1717510693203,1.10922232,3793.9,3792.2,1.32126577]
[1717510693369,3.7259074,3794.1,3793.0,5.41742]
[1717510693370,0.57001987,3794.0,3793.0,5.41742]
[1717510693572,2.63528,3794.7,3793.2,2.63626]
[1717510693819,2.63528,3794.7,3793.2,5.41726]
[1717510693970,2.63557,3794.3,3793.2,2.63626]
[1717510694176,2.535,3793.9,3793.3,0.03176671]
[1717510694375,2.4512,3793.8,3793.3,0.03176671]
[1717510694590,2.4512,3793.8,3792.2,3.95822577]
[1717510694591,2.4512,3793.8,3792.3,3.0]
[1717510694814,2.63557,3794.3,3792.4,3.18678]
[1717510695060,6.27936232,3794.9,3793.1,2.63634]
[1717510695326,6.27936232,3794.9,3793.0,2.4783]
[1717510695327,0.56987712,3794.8,3793.3,5.41721]
[1717510695633,3.0,3794.8,3793.4,1.92116517]
[1717510695924,2.36980744,3794.8,3793.5,1.32126577]
[1717510696227,2.63527,3794.7,3793.4,0.02910367]
[1717510696453,2.535,3794.4,3793.6,0.02907206]
[1717510696737,2.63527,3794.7,3793.6,1.31731877]
[1717510696738,0.56980744,3794.6,3793.6,1.31731877]
[1717510696878,0.56980744,3794.6,3793.0,2.63637]
[1717510696879,2.59010774,3794.5,3793.0,2.63637]
[1717510697106,2.59010774,3794.5,3793.1,1.32126577]
[1717510697653,5.17051,3794.4,3793.1,1.32126577]
[1717510697946,0.56980744,3794.3,3793.1,1.32126577]
[1717510699762,2.63551,3794.4,3793.2,2.63627]
[1717510699913,2.63551,3794.4,3792.6,2.2853]
[1717510699914,0.52256177,3794.3,3793.3,1.32126577]
[1717510700259,4.09241648,3794.3,3793.3,1.32126577]
[1717510700411,2.63568,3794.1,3793.3,1.32126577]
[1717510700612,0.56985471,3794.0,3793.3,1.32126577]
[1717510700886,0.56985471,3794.0,3792.0,2.63707]
[1717510700887,5.17084,3793.9,3792.0,2.63707]
[1717510701177,2.63602,3793.6,3792.2,5.41797]
[1717510701389,0.56985471,3793.5,3792.6,3.95795577]
[1717510701551,0.56985471,3793.6,3792.6,3.95795577]
[1717510701872,7.33,3793.7,3792.6,3.95795577]
[1717510703153,7.33,3793.7,3792.6,1.32126577]
[1717510703154,2.63609,3793.5,3792.6,1.32126577]
[1717510703473,2.63637,3793.1,3791.6,2.63739]
[1717510703678,9.96637,3793.1,3791.7,1.32126577]
[1717510704031,2.63662,3792.8,3791.6,2.63739]
[1717510704295,0.62066811,3792.7,3791.3,2.3102]
[1717510704434,0.57007893,3792.7,3791.3,2.3102]
[1717510704842,0.57007893,3792.9,3791.3,2.3102]
[1717510705061,2.63673,3792.6,3791.1,2.63773]
[1717510705292,2.63673,3792.6,3790.4,2.3429]
[1717510705293,4.90427,3792.1,3790.6,2.63808]
[1717510705435,12.23427,3792.1,3790.6,2.63808]
[1717510705635,12.23427,3792.1,3790.7,0.498098]
[1717510705636,2.63723,3791.9,3790.7,0.498098]
[1717510705878,1.223427,3792.0,3790.1,1.055755]
[1717510705879,1.223427,3792.0,3790.1,2.63843]
[1717510706080,2.63733,3791.8,3790.1,2.63843]
[1717510706387,2.63733,3791.8,3790.4,2.63818]
[1717510706538,2.63733,3791.8,3790.7,2.63798]
[1717510706877,2.63733,3791.8,3790.2,2.63838]
[1717510707077,2.63733,3791.8,3790.3,1.32126577]
[1717510707246,2.63733,3791.8,3789.9,2.4433]
[1717510707247,2.63733,3791.8,3790.5,5.41915]
[1717510707434,2.63733,3791.8,3790.7,2.781]
[1717510707635,2.63733,3791.8,3790.8,1.32126577]
[1717510709562,3.0,3792.0,3790.8,1.32126577]
[1717510709880,2.63696,3792.3,3790.9,2.63787]
[1717510709881,3.0,3792.2,3790.9,2.63787]
[1717510710083,3.0,3792.2,3791.0,1.99527935]
[1717510710288,2.63696,3792.3,3791.2,2.4317]
[1717510710581,2.63696,3792.3,3791.3,1.32126577]
[1717510712280,0.57021264,3792.2,3791.3,1.32126577]
[1717510712480,2.63696,3792.3,3791.3,1.32126577]
[1717510712675,2.63696,3792.3,3791.4,0.13212658]
[1717510712878,2.63696,3792.3,3791.4,1.32126577]
[1717510713297,2.63696,3792.3,3791.0,2.63781]
[1717510713298,2.63723,3791.9,3790.5,8.41912]
[1717510713501,9.96723,3791.9,3790.6,1.32126577]
[1717510713809,2.63736,3791.7,3790.6,1.32126577]
[1717510714396,2.63736,3791.7,3790.7,2.63799]
[1717510714562,2.63736,3791.7,3790.8,1.71719135]
[1717510714763,7.33,3791.9,3791.0,2.63777]
[1717510715004,7.33,3791.9,3791.1,1.32126577]
[1717510715157,7.33,3791.9,3791.2,2.63766]
[1717510715362,7.33,3791.9,3791.4,2.63752]
[1717510715559,2.63685,3792.4,3791.6,2.6374]
[1717510715560,9.96685,3792.4,3791.6,2.6374]
[1717510715869,7.33,3792.4,3791.7,1.32126577]
[1717510716717,7.33,3792.4,3791.8,2.63722]
[1717510716896,7.33,3792.4,3791.9,1.32126577]
[1717510717091,7.33,3792.4,3792.0,2.63712]
[1717510717295,7.33,3792.4,3792.1,1.71710435]
[1717510717921,2.63631,3793.2,3792.1,1.71710435]
[1717510717922,2.63631,3793.2,3792.2,2.63699]
[1717510718233,2.63631,3793.2,3792.3,1.32126577]
[1717510718526,0.57002122,3793.1,3792.3,1.32126577]
[1717510719120,0.57002122,3793.1,3792.4,0.04634355]
[1717510719434,0.57002122,3793.1,3792.5,1.4580267]
[1717510719593,2.63602,3793.6,3792.5,1.4580267]
[1717510719797,0.56997869,3793.5,3792.5,1.4580267]
[1717510720513,0.56997869,3793.5,3792.6,2.6367]
[1717510720718,0.56997869,3794.0,3793.3,1.32126577]
[1717510721027,2.6354,3794.5,3793.4,3.14282229]
[1717510721233,0.56997869,3794.4,3793.5,1.32126577]
[1717510721585,0.56997869,3794.4,3793.6,2.63601]
[1717510721808,0.56997869,3794.9,3793.7,1.32126577]
[1717510722026,2.63524,3794.8,3793.7,1.71714435]
[1717510722234,0.56997869,3794.7,3793.7,1.71714435]
[1717510723022,0.56997869,3794.7,3793.2,2.63628]
[1717510723023,2.63563,3794.2,3793.2,2.63628]
[1717510723375,2.63587,3793.9,3792.8,2.63657]
[1717510723511,4.21876101,3793.9,3792.9,1.32126577]
[1717510723841,2.63595,3793.7,3792.9,1.32126577]
[1717510723985,4.21884101,3793.7,3792.9,1.32126577]
[1717510724185,2.63595,3793.7,3792.9,1.95906935]
[1717510724435,2.63595,3793.7,3792.0,5.28]
[1717510724436,0.56995967,3793.6,3792.0,5.28]
[1717510724615,4.00689714,3794.6,3790.4,0.54602064]
[1717510724616,1.58289101,3793.8,3793.4,2.6361]
[1717510724810,1.58289101,3794.2,3793.5,1.32126577]
[1717510725024,1.58289101,3794.7,3793.5,1.32126577]
[1717510725187,0.56995967,3795.0,3793.6,0.62460658]
[1717510725188,1.58289101,3794.8,3793.6,0.62460658]
[1717510725388,1.58289101,3794.8,3793.7,1.32126577]
[1717510725724,1.58289101,3794.8,3794.0,2.63568]
[1717510726031,4.78791068,3795.0,3794.1,1.32126577]
[1717510726226,2.6352,3794.8,3793.6,3.26060658]
[1717510727150,2.6352,3794.8,3793.7,1.64732643]
[1717510727801,2.6352,3794.8,3793.7,0.32606066]
[1717510728002,4.2180022,3794.8,3793.7,1.64732643]
[1717510728327,4.2180022,3794.8,3793.6,2.636]
[1717510728328,2.63538,3794.6,3793.6,2.636]
[1717510728548,2.63538,3794.6,3793.6,3.95726577]
[1717510728752,4.2181822,3794.6,3793.6,3.95726577]
[1717510728952,2.63538,3794.6,3793.6,3.95726577]
[1717510729154,1.5828022,3794.7,3793.9,2.63579]
[1717510729358,1.5828022,3794.7,3794.0,1.32126577]
[1717510729517,1.10922232,3794.9,3794.0,1.32126577]
[1717510729518,2.63515,3794.9,3794.0,1.32126577]
[1717510729714,2.63515,3794.9,3794.0,1.71697135]
[1717510731060,2.6354,3794.5,3793.4,2.63609]
[1717510731259,2.6354,3794.5,3793.5,4.32126577]
[1717510732148,2.6353,3794.7,3793.8,2.63587]
[1717510732478,2.6353,3794.7,3793.8,3.95713577]
[1717510732677,2.6353,3794.7,3793.5,3.0]
[1717510732841,12.46392452,3795.1,3793.5,1.32126577]
[1717510732842,2.63546,3794.4,3793.5,1.32126577]
[1717510733038,2.63546,3794.4,3793.6,1.32126577]
[1717510734988,2.63521,3794.8,3793.7,2.63594]
[1717510735303,2.63521,3794.8,3793.8,1.32126577]
[1717510735891,7.33,3795.1,3793.9,2.63577]
[1717510736180,2.63506,3795.0,3794.0,1.32126577]
[1717510736485,2.63506,3795.0,3794.1,2.63561]
[1717510736680,2.63506,3795.0,3794.2,1.32126577]
[1717510736882,7.33,3795.1,3794.4,2.63543]
[1717510737202,11.60410568,3795.4,3794.0,2.781]
[1717510737203,2.63484,3795.3,3794.0,2.63572]
[1717510737346,2.63499,3795.1,3794.1,1.32126577]
[1717510737887,2.63522,3794.8,3794.0,2.63572]
[1717510738093,2.63522,3794.8,3794.0,3.95698577]
[1717510738758,2.15689457,3795.2,3794.1,1.32126577]
[1717510738759,4.79182457,3795.2,3794.1,1.32126577]
[1717510739160,4.79182457,3795.2,3794.2,2.63559]
[1717510739360,2.63493,3795.2,3794.3,1.32126577]
[1717510739563,2.63521,3794.8,3793.6,2.63595]
[1717510739748,2.63521,3794.8,3793.7,1.32126577]
[1717510740355,2.63521,3794.8,3793.8,2.63585]
[1717510740649,2.63521,3794.8,3793.2,2.781]
[1717510740650,2.63521,3794.8,3794.0,2.63571]
[1717510740874,2.63521,3794.8,3794.1,1.71696335]
[1717510741079,2.63521,3794.8,3794.1,1.32126577]
[1717510741793,7.33,3794.9,3794.3,2.6355]
[1717510742010,7.33,3794.9,3794.4,1.32126577]
[1717510742242,2.63493,3795.2,3794.4,1.32126577]
[1717510742950,2.63493,3795.2,3794.5,2.63537]
[1717510743154,2.63493,3795.2,3794.0,5.2436]
[1717510743155,7.33,3795.4,3795.0,2.63498]
[1717510743470,7.33,3795.4,3794.7,4.10226577]
[1717510743471,7.33,3795.4,3795.2,2.6349]
[1717510743795,11.60410568,3795.9,3795.3,1.32126577]
[1717510744493,2.3043,3795.8,3794.1,2.302]
[1717510744803,2.3043,3795.8,3794.2,1.32126577]
[1717510744804,4.45683262,3795.8,3794.2,1.32126577]
[1717510744956,1.58290426,3795.6,3794.3,0.36232658]
[1717510745155,1.58290426,3795.6,3794.4,1.32126577]
[1717510745454,4.21767426,3795.4,3794.4,3.95668577]
[1717510745657,4.21767426,3795.4,3794.1,2.302]
[1717510745658,2.63501,3795.1,3794.0,2.63571]
[1717510745901,2.63501,3795.1,3794.1,4.32126577]
[1717510746101,2.63501,3795.1,3794.1,1.32126577]
[1717510746267,2.63512,3794.9,3793.6,2.63599]
[1717510746594,1.58290426,3795.0,3793.7,1.32126577]
[1717510746595,2.63529,3794.7,3793.7,1.32126577]
[1717510746800,4.21819426,3794.7,3793.8,2.63585]
[1717510747097,2.63529,3794.7,3793.9,1.32126577]
[1717510747394,4.05890426,3794.8,3794.0,2.63573]
[1717510747395,1.58290426,3794.8,3794.0,2.63573]
[1717510747597,0.56974934,3794.7,3794.1,1.32126577]
[1717510747895,0.56974934,3794.9,3794.1,1.32126577]
[1717510748056,8.91290426,3795.0,3794.1,1.32126577]
[1717510748255,0.56969406,3794.9,3794.8,2.63517]
[1717510748568,7.33,3795.6,3794.7,2.63525]
[1717510748887,7.33,3795.6,3794.9,2.63507]
[1717510749251,0.56960009,3795.5,3794.9,2.63507]
[1717510749504,2.1517473,3795.5,3794.9,2.63507]
[1717510749807,7.33,3795.6,3795.1,2.63494]
[1717510750025,7.33,3795.6,3795.2,1.32126577]
[1717510750156,7.33,3795.6,3795.3,0.39562058]
[1717510750474,7.33,3795.6,3795.4,1.32126577]
[1717510752797,7.33,3795.6,3794.8,0.540825]
[1717510753013,8.91214721,3795.6,3794.9,1.32126577]
[1717510753465,8.91214721,3795.6,3795.0,2.63502]
[1717510753665,0.56960142,3795.5,3795.1,1.77097685]
[1717510753964,7.33,3795.6,3795.1,1.77097685]
[1717510754676,0.56958452,3795.5,3795.1,1.77097685]
[1717510754879,8.91214721,3795.6,3795.1,1.77097685]
[1717510755377,0.56959501,3795.5,3795.1,1.77097685]
[1717510755784,2.15174222,3795.5,3795.1,1.77097685]
[1717510756103,2.15174222,3795.5,3795.3,2.63483]
[1717510756510,7.33,3795.6,3795.3,2.63483]
[1717510757002,7.33,3795.6,3795.4,1.32126577]
[1717510757375,8.91214721,3795.6,3794.8,2.63516]
[1717510757571,1.58214721,3795.4,3794.9,1.83315177]
[1717510758012,2.15174654,3795.5,3794.9,0.511886]
[1717510758305,1.58214721,3795.3,3794.4,2.63543]
[1717510758611,1.58214721,3795.0,3794.5,1.32126577]
[1717510758906,2.63481,3795.4,3793.4,2.773]
[1717510758907,1.58214721,3794.8,3794.0,2.63571]
[1717510759077,1.58214721,3794.7,3794.1,1.32126577]
[1717510759262,1.58214721,3794.6,3794.1,1.71696335]
[1717510759897,1.58214721,3794.6,3794.2,2.63556]
[1717510760103,1.58214721,3794.6,3794.3,1.32126577]
[1717510760261,1.58214721,3794.7,3794.3,1.32126577]
[1717510760906,1.58214721,3794.6,3794.3,1.32126577]
[1717510761199,1.58214721,3794.6,3794.3,1.4929621]
[1717510762280,1.58214721,3794.6,3794.3,1.32126577]
[1717510763090,0.56959933,3795.0,3793.6,2.63595]
[1717510763091,1.58214721,3794.5,3793.6,2.63595]
[1717510763371,1.58214721,3794.4,3793.7,4.32126577]
[1717510763601,1.5827776,3794.1,3793.7,4.32126577]
[1717510763906,1.5827776,3794.1,3793.1,2.63629]
[1717510764097,1.5827776,3793.9,3793.3,2.63621]
[1717510764402,1.5827776,3793.8,3793.4,1.32126577]
[1717510764968,1.58286063,3793.8,3793.4,1.32126577]
[1717510765516,1.58285004,3793.9,3793.4,1.32126577]
[1717510765701,1.58285004,3793.9,3793.2,0.498229]
[1717510765898,1.58285004,3793.9,3793.3,1.32126577]
[1717510766211,1.58285004,3793.8,3793.4,2.63614]
[1717510766418,1.58285004,3794.0,3793.5,1.32126577]
[1717510767308,2.63561,3794.2,3793.5,1.32126577]
[1717510767518,1.58288898,3793.9,3793.5,1.32126577]
[1717510767673,1.58288898,3794.0,3793.2,3.0]
[1717510767868,1.58288898,3794.0,3793.3,1.32126577]
[1717510768166,1.58288898,3793.8,3793.3,1.32126577]
[1717510768382,1.58288898,3793.9,3793.3,1.32126577]
[1717510768994,0.56984003,3794.1,3793.3,1.32126577]
[1717510768995,1.58288898,3793.8,3793.3,1.32126577]
[1717510769208,1.58288898,3793.9,3793.3,1.32126577]
[1717510769366,1.58288898,3794.0,3793.3,1.32126577]
[1717510769566,1.58288898,3794.0,3793.4,0.43212658]
[1717510769785,1.58288898,3794.0,3793.5,1.32126577]
[1717510770075,1.58288898,3794.2,3793.5,1.32126577]
[1717510770303,1.58288898,3794.3,3793.5,1.32126577]
[1717510770606,1.58288898,3794.2,3793.6,0.43895724]
[1717510770809,1.58288898,3794.2,3793.7,1.32126577]
[1717510771039,2.63536,3794.6,3793.8,2.63587]
[1717510771040,1.10922232,3794.6,3793.8,2.63587]
[1717510771341,3.74452232,3794.7,3793.8,3.95713577]
[1717510771623,1.10922232,3794.5,3793.8,3.95713577]
[1717510771793,1.10922232,3794.5,3793.9,0.4396093]
[1717510772179,1.10922232,3794.5,3793.8,1.32126577]
[1717510773173,1.10922232,3794.4,3793.8,1.32126577]
[1717510773886,1.37152136,3794.6,3793.8,1.32126577]
[1717510773887,1.10922232,3794.5,3793.8,1.32126577]
[1717510774497,1.10922232,3794.6,3793.8,1.32126577]
[1717510774669,1.10922232,3794.6,3793.9,0.4396113]
[1717510774874,3.74452232,3794.7,3794.0,1.32126577]
[1717510775113,1.10922232,3794.7,3794.0,1.32126577]
[1717510775491,1.10922232,3794.7,3794.1,2.4859]
[1717510775675,7.33,3795.1,3794.2,1.32126577]
[1717510775676,1.10922232,3795.0,3794.2,1.32126577]
[1717510775876,7.33,3795.1,3794.3,0.55658184]
[1717510776172,7.33,3795.1,3794.8,2.63518]
[1717510776367,1.10922232,3795.5,3794.9,1.32126577]
[1717510776661,1.10922232,3795.6,3794.9,1.32126577]
[1717510777020,8.43922232,3795.7,3795.0,2.63498]
[1717510777319,8.43922232,3795.7,3795.1,1.71689035]
[1717510777320,7.33,3795.7,3795.1,1.71689035]
[1717510777515,7.33,3795.7,3795.2,2.63488]
[1717510777744,7.33,3795.7,3795.3,1.32126577]
[1717510779428,1.10922232,3795.9,3795.3,1.32126577]
[1717510779758,1.10922232,3795.9,3794.3,5.23158184]
[1717510779955,8.43922232,3795.8,3795.3,1.32126577]
[1717510780160,1.10922232,3795.8,3795.4,1.32126577]
[1717510780456,11.61737026,3796.3,3795.4,1.32126577]
[1717510780457,1.10922232,3795.9,3795.5,2.68736903]
[1717510780670,7.33,3796.3,3795.6,1.32126577]
[1717510780825,7.33,3796.3,3795.8,2.63443]
[1717510781021,7.33,3796.3,3795.9,1.32126577]
[1717510781766,8.43922232,3796.3,3795.9,1.32126577]
[1717510781971,7.33,3796.3,3795.9,1.32126577]
[1717510783134,7.33,3796.3,3795.4,2.63473]
[1717510783334,11.07340232,3796.3,3795.5,1.32126577]
[1717510783542,1.10922232,3796.2,3795.5,1.32126577]
[1717510784220,6.16531232,3796.1,3795.0,2.63501]
[1717510784444,2.63451,3795.8,3795.0,1.32126577]
[1717510785025,3.57902992,3795.8,3795.0,1.32126577]
[1717510785569,3.74373232,3795.8,3795.1,1.32126577]
[1717510786021,1.37766688,3796.0,3795.1,1.32126577]
[1717510786022,1.10922232,3796.0,3795.1,1.32126577]
[1717510786227,2.63442,3795.9,3795.1,1.32126577]
[1717510786426,3.74364232,3795.9,3795.1,1.32126577]
[1717510786773,1.10922232,3795.8,3795.1,1.32126577]
[1717510786970,2.63458,3795.7,3794.5,2.63536]
[1717510787174,2.63458,3795.7,3794.6,1.32126577]
[1717510787175,1.10922232,3795.6,3794.6,1.32126577]
[1717510787829,2.63471,3795.5,3794.6,1.32126577]
[1717510788030,2.63471,3795.5,3794.7,2.63523]
[1717510788233,1.10922232,3795.7,3794.8,1.71691535]
[1717510788441,8.43922232,3795.8,3794.8,1.71691535]
[1717510789151,8.43922232,3795.8,3794.9,2.63509]
[1717510789325,8.43922232,3795.8,3795.0,1.32126577]
[1717510789935,7.33,3795.8,3795.0,1.32126577]
[1717510790320,7.33,3795.8,3795.0,1.75646631]
[1717510790766,7.33,3795.8,3795.1,2.63495]
[1717510790932,7.33,3795.8,3795.2,1.32126577]
[1717510791151,8.43922232,3796.2,3795.2,1.32126577]
[1717510791354,7.33,3796.2,3795.3,2.2868]
[1717510791592,7.33,3796.2,3795.4,1.68207235]
[1717510792274,7.33,3796.2,3795.6,2.63461]
[1717510792459,7.33,3796.2,3795.7,1.32126577]
[1717510793175,7.33,3796.2,3795.8,2.63446]
[1717510793343,7.33,3796.2,3795.9,1.32126577]
[1717510793548,7.33,3796.2,3796.0,0.39557258]
[1717510793789,7.3817,3796.8,3796.2,2.63419]
[1717510793949,0.0517,3796.8,3796.3,1.32126577]
[1717510795068,0.0517,3796.8,3796.0,0.39557258]
[1717510795278,0.0517,3796.8,3796.1,1.32126577]
[1717510795860,0.0517,3796.8,3796.1,3.95550577]
[1717510797301,0.0517,3796.8,3796.2,2.3756]
[1717510797498,0.0517,3796.8,3796.3,1.32126577]
[1717510798002,0.0517,3796.8,3796.4,2.63405]
[1717510798212,0.0517,3796.8,3796.5,2.23165735]
[1717510799295,0.0517,3796.8,3796.5,0.91039158]
[1717510799596,0.0517,3796.8,3796.6,1.32126577]
[1717510799956,0.0517,3796.8,3795.7,2.3756]
[1717510800197,0.0517,3796.8,3795.8,1.32126577]
[1717510800401,2.63392,3796.7,3795.8,6.95570577]
[1717510800584,2.63392,3796.7,3795.4,5.63473]
[1717510800585,2.6341,3796.4,3795.4,5.63473]
[1717510800787,2.6341,3796.4,3795.5,1.32126577]
[1717510801121,2.63431,3796.1,3795.5,1.32126577]
[1717510801255,2.63452,3795.8,3795.4,3.0]
[1717510802088,2.63452,3795.8,3795.4,4.32126577]
[1717510802261,2.63452,3795.8,3795.4,3.0]
[1717510802463,2.4895,3796.1,3795.4,4.32126577]
[1717510802775,2.63435,3796.0,3795.4,3.0]
[1717510803980,2.63435,3796.0,3795.4,4.32126577]
[1717510804181,2.63435,3796.0,3795.5,1.32126577]
[1717510804412,7.33,3796.2,3795.5,1.32126577]
[1717510804919,7.33,3796.2,3795.5,3.95590577]
[1717510805219,7.33,3796.2,3795.6,0.69559058]
[1717510805380,7.33,3796.2,3795.7,1.32126577]
[1717510805580,7.33,3796.2,3795.4,3.0]
[1717510805775,2.63429,3796.1,3795.4,4.32126577]
[1717510805976,2.63429,3796.1,3795.4,3.0]
[1717510806279,2.63447,3795.9,3795.5,1.32126577]
[1717510806570,7.33,3796.2,3795.5,1.32126577]
[1717510806770,7.33,3796.2,3795.6,2.63461]
[1717510806943,7.33,3796.2,3795.7,1.32126577]
[1717510808741,2.63412,3796.4,3795.7,1.32126577]
[1717510808938,2.63426,3796.2,3795.4,3.0]
[1717510809251,2.63426,3796.2,3795.4,4.32126577]
[1717510809453,1.24476675,3796.3,3795.4,4.32126577]
[1717510809454,2.63448,3795.9,3795.4,3.0]
[1717510809776,2.6344,3796.0,3795.4,3.0]
[1717510810893,2.6344,3796.0,3795.5,1.32126577]
[1717510811300,2.6344,3796.0,3795.4,3.0]
[1717510811499,1.902,3796.3,3795.4,3.0]
[1717510811500,2.63463,3795.6,3795.4,3.0]
[1717510812172,7.33,3796.0,3795.4,3.0]
[1717510812173,11.07358232,3796.0,3795.4,3.0]
[1717510812380,9.96436,3796.0,3795.4,3.0]
[1717510812581,7.33,3796.0,3795.5,1.32126577]
[1717510813082,7.33,3796.0,3795.5,3.95592577]
[1717510813284,7.33,3796.0,3795.5,1.32126577]
[1717510814690,7.33,3796.0,3795.4,3.0]
[1717510814886,7.33,3796.0,3795.4,4.32126577]
[1717510815201,1.10922232,3795.9,3795.5,1.32126577]
[1717510815407,7.33,3796.0,3795.5,1.32126577]
[1717510816395,8.43922232,3796.0,3795.4,3.0]
[1717510816581,2.6346,3795.7,3795.4,3.0]
[1717510818577,3.74382232,3795.7,3795.4,3.0]
[1717510818965,2.6346,3795.7,3795.4,3.0]
[1717510819166,3.74382232,3795.7,3795.4,3.0]
[1717510819403,5.23681885,3795.7,3795.4,3.0]
[1717510819561,3.74391232,3795.5,3795.4,3.0]
[1717510820000,2.63469,3795.5,3795.4,3.0]
[1717510820201,4.01143296,3795.5,3795.4,3.0]
[1717510821229,2.63469,3795.5,3795.4,3.0]
[1717510821505,3.21266781,3795.5,3795.4,3.0]
[1717510822066,4.86475936,3795.5,3795.4,3.0]
[1717510822261,4.28678155,3795.5,3795.4,3.0]
[1717510822463,2.63469,3795.5,3795.4,3.0]
[1717510822672,1.65209155,3795.8,3795.4,3.0]
[1717510822870,1.37955258,3795.5,3795.4,3.0]
[1717510823188,1.10353897,3795.6,3795.4,2.5546875]
[1717510823383,4.26255174,3795.5,3795.4,2.5546875]
[1717510823589,2.88299916,3795.5,3795.4,2.5546875]
[1717510824171,2.63469,3795.5,3795.4,2.5546875]
[1717510824501,4.01410538,3795.5,3795.4,2.5546875]
[1717510824886,1.37941538,3795.6,3795.4,2.5546875]
[1717510825203,1.10348378,3795.5,3795.4,2.5546875]
[1717510825511,1.10345747,3795.5,3795.4,2.5546875]
[1717510826066,1.10345747,3795.6,3795.4,2.5546875]
[1717510826767,1.10345747,3795.5,3795.4,2.5546875]
[1717510827001,9.96438,3796.0,3795.4,2.5546875]
[1717510827002,1.37941538,3795.6,3795.4,2.5546875]
[1717510827317,1.37941538,3795.6,3795.4,3.87595327]
[1717510827476,1.10347133,3795.6,3795.4,3.87595327]
[1717510827902,1.10347133,3795.6,3795.4,2.5546875]
[1717510828073,1.37941538,3795.5,3795.4,2.5546875]
[1717510828274,3.76902354,3795.7,3795.4,2.5546875]
[1717510828608,5.42428015,3795.7,3795.4,2.5546875]
[1717510828785,1.37937589,3795.5,3795.4,2.5546875]
[1717510829907,1.37937589,3795.6,3795.4,2.5546875]
[1717510830292,1.37928677,3795.5,3795.4,2.5546875]
[1717510830612,0.56961249,3795.5,3795.4,2.5546875]
[1717510831506,0.56961249,3795.5,3795.4,6.62237328]
[1717510831884,1.58206714,3795.5,3795.4,6.62237328]
[1717510832425,1.58206714,3795.5,3795.4,2.61013876]
[1717510832599,1.67289168,3795.7,3795.4,2.61013876]
[1717510832771,2.63462,3795.6,3795.4,2.5546875]
[1717510832970,0.56961249,3795.5,3795.4,2.5546875]
[1717510834936,0.56963707,3795.5,3795.4,2.5546875]
[1717510835136,1.05557472,3795.5,3795.4,2.5546875]
[1717510838987,2.43453274,3795.5,3795.4,2.5546875]
[1717510839198,1.94859509,3795.5,3795.4,2.5546875]
[1717510839402,0.56963707,3795.5,3795.4,2.5546875]
[1717510840427,1.94876037,3795.5,3795.4,2.5546875]
[1717510840936,1.94876037,3795.5,3795.4,3.87595327]
[1717510841132,1.10318027,3795.7,3795.4,6.14605327]
[1717510841285,0.56963707,3795.8,3795.5,1.9358711]
[1717510841286,1.58206113,3795.6,3795.5,1.9358711]
[1717510841487,1.58206113,3795.6,3795.5,1.99006283]
[1717510842037,7.33,3796.0,3795.5,2.54006283]
[1717510842038,1.58206113,3795.7,3795.5,2.54006283]
[1717510842327,1.58206113,3795.8,3795.6,0.55]
[1717510842530,0.56963707,3795.9,3795.7,1.32126577]
[1717510842731,2.15133346,3795.9,3795.7,1.37513621]
[1717510842944,1.58186284,3795.8,3795.7,1.32126577]
[1717510843083,5.27486421,3795.8,3795.4,2.5546875]
[1717510843283,1.58186284,3795.6,3795.4,2.5546875]
[1717510843583,0.56947062,3795.5,3795.4,2.5546875]
[1717510843874,1.10392671,3795.5,3795.4,2.5546875]
[1717510843990,1.10392671,3795.6,3795.4,2.5546875]
[1717510844197,1.58215359,3795.5,3795.4,2.5546875]
[1717510844397,1.10392671,3795.5,3795.4,2.5546875]
[1717510845089,0.56947062,3795.6,3795.4,2.5546875]
[1717510845090,1.94859392,3795.6,3795.4,2.5546875]
[1717510845285,1.3791233,3795.6,3795.4,2.5546875]
[1717510845488,1.3791233,3795.6,3795.4,5.30945625]
[1717510845489,1.1046653,3795.5,3795.4,5.30945625]
[1717510845840,1.58213444,3795.6,3795.5,2.63469]
[1717510846133,1.1046653,3795.7,3795.5,2.63469]
[1717510846134,10.01679974,3796.0,3795.5,4.5581285]
[1717510846289,0.56949396,3795.9,3795.6,1.32126577]
[1717510846493,8.91213444,3796.0,3795.7,0.05214567]
[1717510846815,8.91213444,3796.0,3795.8,1.77707591]
[1717510847023,7.33,3796.0,3795.8,2.32707591]
[1717510847220,2.68679974,3796.3,3795.9,0.05211861]
[1717510847404,1.58213444,3796.3,3796.0,1.87126577]
[1717510847631,0.56944645,3796.3,3796.0,1.87126577]
[1717510847818,1.67408884,3796.5,3796.1,0.54797343]
[1717510848012,1.1046653,3796.4,3796.2,1.32126577]
[1717510848355,0.56942354,3796.5,3796.2,1.32126577]
[1717510848356,1.67408884,3796.5,3796.2,1.32126577]
[1717510849133,1.1046653,3796.3,3796.2,1.32126577]
[1717510849341,1.1046653,3796.4,3795.8,2.63443]
[1717510849565,1.1046653,3796.3,3795.9,1.32126577]
[1717510849833,1.38013382,3796.4,3795.9,1.37311567]
[1717510849834,1.1046653,3796.2,3795.9,1.37311567]
[1717510850051,1.1046653,3796.3,3795.9,1.37311567]
[1717510850193,1.1046653,3796.2,3795.9,1.37311567]
[1717510850891,1.38013382,3796.1,3796.0,1.32126577]
[1717510851115,1.7815602,3796.1,3796.0,0.05009595]
[1717510851335,1.7815602,3796.1,3795.4,5.0539875]
[1717510851558,1.10376217,3795.9,3795.5,1.87126577]
[1717510851721,1.10376217,3795.9,3795.5,1.92142937]
[1717510852125,1.10376217,3796.0,3795.5,1.92142937]
[1717510852539,1.10376217,3796.1,3795.6,2.63462]
[1717510852807,1.10376217,3796.1,3795.7,1.92146671]
[1717510853044,1.10376217,3796.2,3795.7,1.92146671]
[1717510853365,2.3981,3796.2,3795.7,0.05020094]